fUSD/lending_fUSD_20250204
["ID","MTS","AMOUNT","RATE_DAILY","PERIOD"]
[351592242,1738651870515,-1345.97,8.866e-05,2]
[351592243,1738651870526,-500.0,8.866e-05,2]
[351592244,1738651870537,-500.0,8.866e-05,2]
[351592245,1738651870546,-500.0,8.866e-05,2]
[351592246,1738651870556,-500.0,8.866e-05,2]
[351592247,1738651870567,-500.0,8.866e-05,2]
[351592248,1738651870578,-507.13,8.866e-05,2]
[351592249,1738651870588,-732.49,8.866e-05,2]
[351592250,1738651870600,-1293.49,8.866e-05,2]
[351592251,1738651870611,-500.0,8.866e-05,2]
[351592252,1738651870622,-500.0,8.866e-05,2]
[351592253,1738651870631,-500.0,8.866e-05,2]
[351592254,1738651870640,-4482.22067721,8.866e-05,2]
[351592255,1738651870650,-500.38564477,8.898e-05,2]
[351592256,1738651870660,-5600.0,8.9e-05,3]
[351592257,1738651870669,-31365.0,8.904e-05,2]
[351592258,1738651870678,-1583.7,8.926e-05,2]
[351592259,1738651870687,-949.48,8.926e-05,2]
[351592260,1738651870697,-1583.7,8.928e-05,2]
[351592261,1738651870707,-151.0,8.931e-05,2]
[351592262,1738651870718,-151.0,8.931e-05,2]
[351592263,1738651870727,-151.0,8.931e-05,2]
[351592264,1738651870736,-151.0,8.932e-05,2]
[351592265,1738651870746,-151.0,8.932e-05,2]
[351592266,1738651870756,-1000.0,8.937e-05,4]
[351592267,1738651870768,-2731.7,8.938e-05,2]
[351592268,1738651870778,-2597.79,8.938e-05,2]
[351592269,1738651870788,-1961.37,8.938e-05,2]
[351592270,1738651870798,-1780.96,8.938e-05,2]
[351592271,1738651870808,-500.0,8.938e-05,2]
[351592272,1738651870818,-792.21,8.938e-05,2]
[351592273,1738651870828,-500.0,8.938e-05,2]
[351592274,1738651870838,-3084.21,8.938e-05,2]
[351592275,1738651870848,-2443.54,8.938e-05,2]
[351592276,1738651870858,-1608.35,8.938e-05,2]
[351592277,1738651870868,-3326.15,8.938e-05,2]
[351592278,1738651870877,-1058.09,8.938e-05,2]
[351592279,1738651870887,-3802.84,8.938e-05,2]
[351592280,1738651870897,-3333.66,8.938e-05,2]
[351592281,1738651870907,-3287.56,8.938e-05,2]
[351592282,1738651870917,-3109.99,8.938e-05,2]
[351592283,1738651870927,-3571.14,8.938e-05,2]
[351592284,1738651870937,-3362.34,8.938e-05,2]
[351592285,1738651870947,-1037.7,8.938e-05,2]
[351592286,1738651870957,-3517.11,8.938e-05,2]
[351592287,1738651870968,-500.0,8.938e-05,2]
[351592288,1738651870978,-2639.94,8.938e-05,2]
[351592289,1738651870988,-665.18,8.938e-05,2]
[351592290,1738651870998,-1806.83,8.938e-05,2]
[351592291,1738651871011,-500.0,8.938e-05,2]
[351592292,1738651871021,-2956.17,8.938e-05,2]
[351592293,1738651871031,-503.90828665,8.938e-05,2]
[351592294,1738651871041,-634.35,8.938e-05,2]
[351592295,1738651871051,-1174.99,8.938e-05,2]
[351592296,1738651871061,-505.68,8.938e-05,2]
[351592297,1738651871071,-3489.81,8.938e-05,2]
[351592298,1738651871081,-2290.92,8.938e-05,2]
[351592299,1738651871091,-2152.55,8.938e-05,2]
[351592300,1738651871100,-1492.95,8.938e-05,2]
[351592301,1738651871112,-500.0,8.939e-05,2]
[351592302,1738651871122,-1386.25,8.939e-05,2]
[351592303,1738651871132,-573.38,8.939e-05,2]
[351592304,1738651871142,-1162.27,8.939e-05,2]
[351592305,1738651871152,-886.96,8.939e-05,2]
[351592306,1738651871162,-1960.06,8.939e-05,2]
[351592307,1738651871171,-500.0,8.939e-05,2]
[351592308,1738651871181,-1816.95,8.939e-05,2]
[351592309,1738651871191,-507.74,8.939e-05,2]
[351592310,1738651871201,-1692.58,8.939e-05,2]
[351592311,1738651871211,-500.0,8.939e-05,2]
[351592312,1738651871221,-1233.2,8.939e-05,2]
[351592313,1738651871231,-837.33,8.939e-05,2]
[351592314,1738651871240,-500.0,8.939e-05,2]
[351592315,1738651871249,-1065.99,8.939e-05,2]
[351592316,1738651871260,-500.0,8.939e-05,2]
[351592317,1738651871270,-501.71323372,8.939e-05,2]
[351592318,1738651871280,-1129.84,8.939e-05,2]
[351592319,1738651871290,-1504.93,8.939e-05,2]
[351592320,1738651871299,-1321.61,8.939e-05,2]
[351592321,1738651871310,-1364.66,8.939e-05,2]
[351592322,1738651871319,-745.69,8.939e-05,2]
[351592323,1738651871329,-1579.1,8.939e-05,2]
[351592324,1738651871339,-1941.246848,8.939e-05,2]
[351592325,1738651871349,-629.84,8.939e-05,2]
[351592326,1738651871359,-1596.8,8.939e-05,2]
[351592327,1738651871368,-155.639737,8.939e-05,2]
[351592328,1738651871378,-500.0,8.939e-05,2]
[351592329,1738651871387,-986.75,8.939e-05,2]
[351592330,1738651871397,-501.62582927,8.939e-05,2]
[351592331,1738651871407,-879.57,8.939e-05,2]
[351592332,1738651871417,-500.0,8.939e-05,2]
[351592333,1738651871428,-500.0,8.939e-05,2]
[351592334,1738651871438,-628.73,8.939e-05,2]
[351592335,1738651871447,-1927.353361,8.939e-05,2]
[351592336,1738651871457,-500.0,8.939e-05,2]
[351592337,1738651871467,-500.0,8.939e-05,2]
[351592338,1738651871476,-500.0,8.939e-05,2]
[351592339,1738651871486,-628.63,8.939e-05,2]
[351592340,1738651871495,-1061.5,8.939e-05,2]
[351592341,1738651871504,-720.77,8.939e-05,2]
[351592342,1738651871515,-1583.49,8.939e-05,2]
[351592343,1738651871524,-1268.29,8.939e-05,2]
[351592344,1738651871533,-500.0,8.939e-05,2]
[351592345,1738651871543,-839.48,8.939e-05,2]
[351592346,1738651871552,-1688.73,8.939e-05,2]
[351592347,1738651871561,-1876.72,8.939e-05,2]
[351592348,1738651871571,-802.61,8.939e-05,2]
[351592349,1738651871580,-610.52,8.939e-05,2]
[351592350,1738651871589,-1840.23,8.939e-05,2]
[351592351,1738651871599,-622.05,8.939e-05,2]
[351592352,1738651871608,-1395.09,8.939e-05,2]
[351592353,1738651871617,-503.26415913,8.939e-05,2]
[351592354,1738651871627,-500.0,8.939e-05,2]
[351592355,1738651871637,-1984.41,8.939e-05,2]
[351592356,1738651871647,-500.0,8.939e-05,2]
[351592357,1738651871656,-573.41,8.939e-05,2]
[351592358,1738651871665,-500.0,8.939e-05,2]
[351592359,1738651871675,-500.0,8.939e-05,2]
[351592360,1738651871684,-500.0,8.939e-05,2]
[351592361,1738651871694,-702.06,8.939e-05,2]
[351592362,1738651871703,-1107.58,8.939e-05,2]
[351592363,1738651871712,-500.0,8.939e-05,2]
[351592364,1738651871722,-500.0,8.939e-05,2]
[351592365,1738651871731,-500.0,8.939e-05,2]
[351592366,1738651871740,-500.0,8.939e-05,2]
[351592367,1738651871750,-500.0,8.939e-05,2]
[351592368,1738651871760,-1023.87,8.939e-05,2]
[351592369,1738651871769,-500.0,8.939e-05,2]
[351592370,1738651871779,-500.0,8.939e-05,2]
[351592371,1738651871789,-2235.71,8.939e-05,2]
[351592372,1738651871798,-500.0,8.939e-05,2]
[351592373,1738651871807,-864.57,8.939e-05,2]
[351592374,1738651871817,-1442.14,8.939e-05,2]
[351592375,1738651871826,-1526.09,8.939e-05,2]
[351592376,1738651871835,-500.0,8.939e-05,2]
[351592377,1738651871844,-749.13,8.939e-05,2]
[351592378,1738651871854,-500.0,8.939e-05,2]
[351592379,1738651871863,-871.17,8.939e-05,2]
[351592380,1738651871872,-1146.18,8.939e-05,2]
[351592381,1738651871883,-662.91,8.939e-05,2]
[351592382,1738651871892,-500.0,8.939e-05,2]
[351592383,1738651871901,-1009.64,8.939e-05,2]
[351592384,1738651871910,-2267.45,8.939e-05,2]
[351592385,1738651871920,-656.52,8.939e-05,2]
[351592386,1738651871931,-500.0,8.939e-05,2]
[351592387,1738651871941,-500.0,8.939e-05,2]
[351592388,1738651871955,-541.89,8.939e-05,2]
[351592389,1738651871977,-736.13,8.939e-05,2]
[351592390,1738651871998,-1760.16,8.939e-05,2]
[351592391,1738651872013,-2409.33,8.939e-05,2]
[351592392,1738651872023,-1852.54,8.939e-05,2]
[351592393,1738651872035,-500.0,8.939e-05,2]
[351592394,1738651872046,-2838.45,8.939e-05,2]
[351592395,1738651872058,-528.53,8.939e-05,2]
[351592396,1738651872071,-545.79,8.939e-05,2]
[351592397,1738651872081,-500.0,8.939e-05,2]
[351592398,1738651872092,-2890.01,8.939e-05,2]
[351592399,1738651872105,-500.0,8.939e-05,2]
[351592400,1738651872303,-2478.82,8.939e-05,2]
[351592401,1738651872312,-500.0,8.939e-05,2]
[351592402,1738651872322,-942.69,8.939e-05,2]
[351592403,1738651872332,-1246.43,8.939e-05,2]
[351592404,1738651872342,-500.0,8.939e-05,2]
[351592405,1738651872351,-2635.78,8.939e-05,2]
[351592406,1738651872361,-1761.95,8.939e-05,2]
[351592407,1738651872370,-503.59353542,8.939e-05,2]
[351592408,1738651872380,-500.0,8.939e-05,2]
[351592409,1738651872389,-2601.96,8.939e-05,2]
[351592410,1738651872405,-500.0,8.939e-05,2]
[351592411,1738651872415,-793.19,8.939e-05,2]
[351592412,1738651872425,-500.0,8.939e-05,2]
[351592413,1738651872435,-2705.26,8.939e-05,2]
[351592414,1738651872444,-1478.32,8.939e-05,2]
[351592415,1738651872453,-500.0,8.939e-05,2]
[351592416,1738651872463,-2173.93,8.939e-05,2]
[351592417,1738651872472,-2878.08,8.939e-05,2]
[351592418,1738651872482,-1170.31,8.939e-05,2]
[351592419,1738651872491,-500.0,8.939e-05,2]
[351592420,1738651872501,-2206.62,8.939e-05,2]
[351592421,1738651872511,-533.56,8.939e-05,2]
[351592422,1738651872520,-1881.39,8.939e-05,2]
[351592423,1738651872530,-2920.46,8.939e-05,2]
[351592424,1738651872541,-699.93,8.939e-05,2]
[351592425,1738651872551,-2040.45,8.939e-05,2]
[351592426,1738651872561,-500.0,8.939e-05,2]
[351592427,1738651872571,-2227.02,8.939e-05,2]
[351592428,1738651872581,-614.25,8.939e-05,2]
[351592429,1738651872590,-779.73,8.939e-05,2]
[351592430,1738651872600,-2094.99,8.939e-05,2]
[351592431,1738651872609,-1294.54,8.939e-05,2]
[351592432,1738651872619,-3429.21,8.939e-05,2]
[351592433,1738651872629,-500.0,8.939e-05,2]
[351592434,1738651872639,-500.0,8.939e-05,2]
[351592435,1738651872649,-500.0,8.939e-05,2]
[351592436,1738651872659,-2303.31,8.939e-05,2]
[351592437,1738651872669,-500.0,8.939e-05,2]
[351592438,1738651872679,-500.0,8.939e-05,2]
[351592439,1738651872689,-2519.6,8.939e-05,2]
[351592440,1738651872699,-596.06,8.939e-05,2]
[351592441,1738651872709,-540.23,8.939e-05,2]
[351592442,1738651872719,-3292.26,8.939e-05,2]
[351592443,1738651872729,-2116.61,8.939e-05,2]
[351592444,1738651872739,-502.46229094,8.939e-05,2]
[351592445,1738651872750,-4613.87,8.939e-05,2]
[351592446,1738651872760,-1583.36,8.939e-05,2]
[351592447,1738651872771,-3463.94,8.939e-05,2]
[351592448,1738651872781,-723.79,8.939e-05,2]
[351592449,1738651872791,-1828.01,8.939e-05,2]
[351592450,1738651872801,-500.0,8.939e-05,2]
[351592451,1738651872810,-2319.2,8.939e-05,2]
[351592452,1738651872821,-3655.1,8.939e-05,2]
[351592453,1738651872830,-500.0,8.939e-05,2]
[351592454,1738651872841,-500.0,8.939e-05,2]
[351592455,1738651872850,-2342.96,8.939e-05,2]
[351592456,1738651872860,-3953.69,8.939e-05,2]
[351592457,1738651872870,-1102.3,8.939e-05,2]
[351592458,1738651872879,-500.0,8.939e-05,2]
[351592459,1738651872889,-687.18,8.939e-05,2]
[351592460,1738651872899,-1381.74,8.939e-05,2]
[351592461,1738651872909,-500.0,8.939e-05,2]
[351592462,1738651872919,-2821.45,8.939e-05,2]
[351592463,1738651872930,-3735.43,8.939e-05,2]
[351592464,1738651872939,-500.0,8.939e-05,2]
[351592465,1738651872949,-500.0,8.939e-05,2]
[351592466,1738651872959,-578.47,8.939e-05,2]
[351592467,1738651872968,-4039.67,8.939e-05,2]
[351592468,1738651872978,-7208.32,8.939e-05,2]
[351592469,1738651872987,-503.13425724,8.939e-05,2]
[351592470,1738651872997,-500.0,8.939e-05,2]
[351592471,1738651873007,-4132.64,8.939e-05,2]
[351592472,1738651873018,-779.56,8.939e-05,2]
[351592473,1738651873028,-1096.53,8.939e-05,2]
[351592474,1738651873038,-221.46292182,8.939e-05,2]
[351592475,1738651873047,-500.0,8.939e-05,2]
[351592476,1738651873058,-695.86,8.939e-05,2]
[351592477,1738651873067,-500.0,8.939e-05,2]
[351592478,1738651873077,-1243.82,8.939e-05,2]
[351592479,1738651873087,-500.0,8.939e-05,2]
[351592480,1738651873097,-500.0,8.939e-05,2]
[351592481,1738651873107,-9349.12,8.939e-05,2]
[351592482,1738651873119,-767.74,8.939e-05,2]
[351592483,1738651873130,-590.61,8.939e-05,2]
[351592484,1738651873141,-1992.72,8.939e-05,2]
[351592485,1738651873151,-1043.64,8.939e-05,2]
[351592486,1738651873160,-500.0,8.939e-05,2]
[351592487,1738651873171,-500.0,8.939e-05,2]
[351592488,1738651873181,-3184.53,8.939e-05,2]
[351592489,1738651873192,-960.35,8.939e-05,2]
[351592490,1738651873202,-3457.48,8.939e-05,2]
[351592491,1738651873212,-543.03,8.939e-05,2]
[351592492,1738651873222,-567.99,8.939e-05,2]
[351592493,1738651873232,-500.0,8.939e-05,2]
[351592494,1738651873242,-1178.38,8.939e-05,2]
[351592495,1738651873252,-3649.67,8.939e-05,2]
[351592496,1738651873262,-568.89,8.939e-05,2]
[351592497,1738651873274,-500.0,8.939e-05,2]
[351592498,1738651873283,-3263.47,8.939e-05,2]
[351592499,1738651873293,-335.06163353,8.939e-05,2]
[351592500,1738651873302,-1509.83,8.939e-05,2]
[351592501,1738651873312,-2825.8,8.939e-05,2]
[351592502,1738651873322,-500.0,8.939e-05,2]
[351592503,1738651873332,-551.84,8.939e-05,2]
[351592504,1738651873341,-521.44,8.939e-05,2]
[351592505,1738651873351,-500.0,8.939e-05,2]
[351592506,1738651873361,-500.0,8.939e-05,2]
[351592507,1738651873370,-500.0,8.939e-05,2]
[351592508,1738651873380,-500.0,8.939e-05,2]
[351592509,1738651873390,-2253.1,8.939e-05,2]
[351592510,1738651873399,-531.39,8.939e-05,2]
[351592511,1738651873409,-2034.78,8.939e-05,2]
[351592512,1738651873418,-520.63176085,8.939e-05,2]
[351592513,1738651873427,-3059.11,8.939e-05,2]
[351592514,1738651873437,-1676.59,8.939e-05,2]
[351592515,1738651873447,-524.42062801,8.939e-05,2]
[351592516,1738651873456,-500.0,8.939e-05,2]
[351592517,1738651873467,-3067.77,8.939e-05,2]
[351592518,1738651873476,-811.45,8.939e-05,2]
[351592519,1738651873486,-704.39,8.939e-05,2]
[351592520,1738651873495,-1503.5,8.939e-05,2]
[351592521,1738651873505,-1599.03,8.939e-05,2]
[351592522,1738651873516,-500.0,8.939e-05,2]
[351592523,1738651873526,-1492.09,8.939e-05,2]
[351592524,1738651873535,-1793.52,8.939e-05,2]
[351592525,1738651873545,-500.0,8.939e-05,2]
[351592526,1738651873555,-532.79,8.939e-05,2]
[351592527,1738651873565,-602.67,8.939e-05,2]
[351592528,1738651873574,-626.12,8.939e-05,2]
[351592529,1738651873583,-500.0,8.939e-05,2]
[351592530,1738651873593,-508.24,8.939e-05,2]
[351592531,1738651873602,-3133.77,8.939e-05,2]
[351592532,1738651873611,-648.43,8.939e-05,2]
[351592533,1738651873621,-500.0,8.939e-05,2]
[351592534,1738651873630,-500.0,8.939e-05,2]
[351592535,1738651873640,-537.17291963,8.939e-05,2]
[351592536,1738651873650,-500.0,8.939e-05,2]
[351592537,1738651873659,-500.0,8.939e-05,2]
[351592538,1738651873668,-500.0,8.939e-05,2]
[351592539,1738651873677,-500.0,8.939e-05,2]
[351592540,1738651873687,-2093.99,8.939e-05,2]
[351592541,1738651873696,-1378.56,8.939e-05,2]
[351592542,1738651873705,-500.0,8.939e-05,2]
[351592543,1738651873715,-500.0,8.939e-05,2]
[351592544,1738651873724,-3288.7,8.939e-05,2]
[351592545,1738651873733,-500.0,8.939e-05,2]
[351592546,1738651873743,-500.0,8.939e-05,2]
[351592547,1738651873753,-570.54,8.939e-05,2]
[351592548,1738651873763,-150.0,8.942e-05,2]
[351592549,1738651873773,-150.0,8.942e-05,2]
[351592550,1738651873784,-500.0,8.942e-05,2]
[351592551,1738651873793,-150.0,8.942e-05,2]
[351592552,1738651873802,-3721.0,8.942e-05,2]
[351592553,1738651873811,-150.0,8.942e-05,2]
[351592554,1738651873820,-150.0,8.942e-05,2]
[351592555,1738651873830,-500.0,8.942e-05,2]
[351592556,1738651873838,-3438.53,8.949e-05,2]
[351592557,1738651873848,-500.0,8.949e-05,2]
[351592558,1738651873857,-1646.64,8.949e-05,2]
[351592559,1738651873867,-500.0,8.949e-05,2]
[351592560,1738651873877,-3741.7,8.949e-05,2]
[351592561,1738651873887,-3952.63,8.949e-05,2]
[351592562,1738651873898,-500.0,8.949e-05,2]
[351592563,1738651873908,-3680.29,8.949e-05,2]
[351592564,1738651873917,-500.0,8.949e-05,2]
[351592565,1738651873927,-4147.98,8.949e-05,2]
[351592566,1738651873937,-2408.72,8.949e-05,2]
[351592567,1738651873947,-4138.09,8.949e-05,2]
[351592568,1738651873957,-1057.21,8.949e-05,2]
[351592569,1738651873967,-2579.52,8.949e-05,2]
[351592570,1738651873976,-3070.89,8.949e-05,2]
[351592571,1738651873986,-2766.53,8.949e-05,2]
[351592572,1738651873996,-3378.45,8.949e-05,2]
[351592573,1738651874006,-1311.77,8.949e-05,2]
[351592574,1738651874017,-2863.92,8.949e-05,2]
[351592575,1738651874027,-4110.8,8.949e-05,2]
[351592576,1738651874038,-3875.56,8.949e-05,2]
[351592577,1738651874048,-2764.33,8.949e-05,2]
[351592578,1738651874058,-3587.47,8.949e-05,2]
[351592579,1738651874068,-717.35,8.949e-05,2]
[351592580,1738651874078,-2721.91,8.949e-05,2]
[351592581,1738651874088,-152.0,8.953e-05,4]
[351592582,1738651874098,-150.0,8.969e-05,2]
[351592583,1738651874110,-500.0,8.969e-05,2]
[351592584,1738651874120,-3721.0,8.969e-05,2]
[351592585,1738651874129,-150.0,8.969e-05,2]
[351592586,1738651874139,-268.83163009,8.969e-05,2]
[351592587,1738651874149,-500.0,8.969e-05,2]
[351592588,1738651874159,-150.0,8.975e-05,2]
[351592589,1738651874168,-220.16654339,8.975e-05,2]
[351592590,1738651874178,-273.23148112,8.975e-05,2]
[351592591,1738651874187,-237.8045868,8.975e-05,2]
[351592592,1738651874198,-150.0,8.997e-05,2]
[351592593,1738651874207,-500.0,8.997e-05,2]
[351592594,1738651874216,-3721.0,8.997e-05,2]
[351592595,1738651874226,-150.0,8.997e-05,2]
[351592596,1738651874235,-500.0,8.997e-05,2]
[351592597,1738651874245,-1583.7,8.999e-05,2]
[351592598,1738651874254,-949.48,8.999e-05,2]
[351592599,1738651874266,-1000.00000099,9e-05,2]
[351592600,1738651874275,-700.0,9e-05,5]
[351592601,1738651874284,-126199.0,9e-05,2]
[351592602,1738651874294,-446.87933251,9e-05,2]
[351592603,1738651874303,-500.0,9e-05,2]
[351592604,1738651874314,-500.0,9e-05,2]
[351592605,1738651874323,-500.0,9e-05,2]
[351592606,1738651874333,-502.5139574,9e-05,2]
[351592607,1738651874342,-894.03,9e-05,2]
[351592608,1738651874352,-500.0,9e-05,2]
[351592609,1738651874362,-500.0,9e-05,2]
[351592610,1738651874371,-500.0,9e-05,2]
[351592611,1738651874381,-500.0,9e-05,2]
[351592612,1738651874391,-549.03,9e-05,2]
[351592613,1738651874401,-652.3,9e-05,2]
[351592614,1738651874410,-500.0,9e-05,2]
[351592615,1738651874420,-500.0,9e-05,2]
[351592616,1738651874430,-500.0,9e-05,2]
[351592617,1738651874441,-501.6017528,9e-05,2]
[351592618,1738651874451,-778.56,9e-05,2]
[351592619,1738651874461,-573.55,9e-05,2]
[351592620,1738651874471,-500.0,9e-05,2]
[351592621,1738651874481,-1319.98,9e-05,2]
[351592622,1738651874490,-500.0,9e-05,2]
[351592623,1738651874500,-949.48,9e-05,2]
[351592624,1738651874509,-1100.0,9e-05,3]
[351592625,1738651874519,-578.36,9.001e-05,2]
[351592626,1738651874529,-534.04146765,9.001e-05,2]
[351592627,1738651874538,-500.0,9.001e-05,2]
[351592628,1738651874547,-500.0,9.001e-05,2]
[351592629,1738651874558,-502.91532928,9.001e-05,2]
[351592630,1738651874567,-500.0,9.001e-05,2]
[351592631,1738651874578,-504.76965015,9.001e-05,2]
[351592632,1738651874589,-500.0,9.001e-05,2]
[351592633,1738651874599,-500.0,9.001e-05,2]
[351592634,1738651874608,-500.0,9.001e-05,2]
[351592635,1738651874618,-500.0,9.001e-05,2]
[351592636,1738651874628,-500.0,9.001e-05,2]
[351592637,1738651874638,-500.0,9.001e-05,2]
[351592638,1738651874649,-500.0,9.001e-05,2]
[351592639,1738651874659,-710.18,9.001e-05,2]
[351592640,1738651874668,-522.69,9.001e-05,2]
[351592641,1738651874677,-603.54,9.001e-05,2]
[351592642,1738651874686,-623.15,9.001e-05,2]
[351592643,1738651874695,-500.0,9.001e-05,2]
[351592644,1738651874705,-500.0,9.001e-05,2]
[351592645,1738651874714,-502.20775574,9.001e-05,2]
[351592646,1738651874723,-1377.31,9.001e-05,2]
[351592647,1738651874732,-500.0,9.001e-05,2]
[351592648,1738651874741,-500.0,9.001e-05,2]
[351592649,1738651874751,-500.0,9.001e-05,2]
[351592650,1738651874760,-501.70268993,9.001e-05,2]
[351592651,1738651874772,-500.0,9.001e-05,2]
[351592652,1738651874781,-500.0,9.001e-05,2]
[351592653,1738651874791,-858.49,9.001e-05,2]
[351592654,1738651874801,-657.95,9.001e-05,2]
[351592655,1738651874810,-639.79,9.001e-05,2]
[351592656,1738651874820,-524.94,9.001e-05,2]
[351592657,1738651874829,-770.99,9.001e-05,2]
[351592658,1738651874839,-500.0,9.001e-05,2]
[351592659,1738651874849,-500.0,9.001e-05,2]
[351592660,1738651874858,-500.0,9.001e-05,2]
[351592661,1738651874868,-500.0,9.001e-05,2]
[351592662,1738651874878,-500.0,9.001e-05,2]
[351592663,1738651874887,-611.3,9.001e-05,2]
[351592664,1738651874897,-500.0,9.001e-05,2]
[351592665,1738651874907,-504.74650064,9.001e-05,2]
[351592666,1738651874916,-500.0,9.001e-05,2]
[351592667,1738651874925,-902.57,9.001e-05,2]
[351592668,1738651874935,-500.0,9.001e-05,2]
[351592669,1738651874945,-500.0,9.001e-05,2]
[351592670,1738651874954,-500.0,9.001e-05,2]
[351592671,1738651874964,-507.5185619,9.001e-05,2]
[351592672,1738651874973,-500.0,9.001e-05,2]
[351592673,1738651874983,-500.0,9.001e-05,2]
[351592674,1738651874993,-2189.52,9.001e-05,2]
[351592675,1738651875003,-500.0,9.001e-05,2]
[351592676,1738651875012,-502.82732808,9.001e-05,2]
[351592677,1738651875023,-502.48499683,9.001e-05,2]
[351592678,1738651875032,-1033.88,9.001e-05,2]
[351592679,1738651875042,-500.0,9.001e-05,2]
[351592680,1738651875051,-500.0,9.001e-05,2]
[351592681,1738651875061,-500.0,9.001e-05,2]
[351592682,1738651875070,-500.0,9.001e-05,2]
[351592683,1738651875078,-500.0,9.001e-05,2]
[351592684,1738651875086,-832.83,9.001e-05,2]
[351592685,1738651875094,-500.0,9.001e-05,2]
[351592686,1738651875103,-500.0,9.001e-05,2]
[351592687,1738651875114,-505.08,9.001e-05,2]
[351592688,1738651875123,-500.0,9.001e-05,2]
[351592689,1738651875131,-682.97,9.001e-05,2]
[351592690,1738651875140,-848.97,9.001e-05,2]
[351592691,1738651875150,-500.0,9.001e-05,2]
[351592692,1738651875159,-500.0,9.001e-05,2]
[351592693,1738651875168,-507.4794288,9.001e-05,2]
[351592694,1738651875177,-1302.8,9.001e-05,2]
[351592695,1738651875187,-500.0,9.001e-05,2]
[351592696,1738651875196,-500.0,9.001e-05,2]
[351592697,1738651875206,-500.0,9.001e-05,2]
[351592698,1738651875215,-502.57040573,9.001e-05,2]
[351592699,1738651875225,-500.0,9.001e-05,2]
[351592700,1738651875234,-1221.1,9.001e-05,2]
[351592701,1738651875243,-1301.56,9.001e-05,2]
[351592702,1738651875253,-500.0,9.001e-05,2]
[351592703,1738651875262,-501.99027188,9.001e-05,2]
[351592704,1738651875274,-500.0,9.001e-05,2]
[351592705,1738651875284,-869.74,9.001e-05,2]
[351592706,1738651875293,-500.0,9.001e-05,2]
[351592707,1738651875303,-1267.25,9.001e-05,2]
[351592708,1738651875312,-513.91239912,9.001e-05,2]
[351592709,1738651875321,-500.0,9.001e-05,2]
[351592710,1738651875330,-500.0,9.001e-05,2]
[351592711,1738651875339,-500.0,9.001e-05,2]
[351592712,1738651875347,-1350.38,9.001e-05,2]
[351592713,1738651875357,-1376.69,9.001e-05,2]
[351592714,1738651875366,-765.49,9.001e-05,2]
[351592715,1738651875376,-500.0,9.001e-05,2]
[351592716,1738651875384,-500.0,9.001e-05,2]
[351592717,1738651875393,-505.42791807,9.001e-05,2]
[351592718,1738651875401,-500.0,9.001e-05,2]
[351592719,1738651875410,-504.49809992,9.001e-05,2]
[351592720,1738651875419,-500.0,9.001e-05,2]
[351592721,1738651875427,-500.0,9.001e-05,2]
[351592722,1738651875436,-1594.6,9.001e-05,2]
[351592723,1738651875444,-1384.45,9.001e-05,2]
[351592724,1738651875453,-2328.86,9.001e-05,2]
[351592725,1738651875461,-662.7,9.001e-05,2]
[351592726,1738651875470,-500.0,9.001e-05,2]
[351592727,1738651875479,-1335.29,9.001e-05,2]
[351592728,1738651875488,-500.0,9.001e-05,2]
[351592729,1738651875498,-500.0,9.001e-05,2]
[351592730,1738651875506,-500.0,9.001e-05,2]
[351592731,1738651875517,-500.0,9.001e-05,2]
[351592732,1738651875525,-659.98,9.001e-05,2]
[351592733,1738651875534,-500.0,9.001e-05,2]
[351592734,1738651875543,-2449.75,9.001e-05,2]
[351592735,1738651875551,-500.0,9.001e-05,2]
[351592736,1738651875559,-612.87,9.001e-05,2]
[351592737,1738651875566,-1097.71,9.001e-05,2]
[351592738,1738651875575,-710.91,9.001e-05,2]
[351592739,1738651875584,-500.0,9.001e-05,2]
[351592740,1738651875591,-500.0,9.001e-05,2]
[351592741,1738651875599,-543.58,9.001e-05,2]